Workbook

Sheet ІП-2022
U1: викл
A2: Приватне акціонерне товариство "Підприємство з експлуатації електричних мереж "Центральна енергетична компанія" повідмляє про початок відкритого обговорення щодо Проекту інвестиційної програми ПрАТ "ПЕЕМ "ЦЕК" на 2022 рік. Пропозиції та зауваження щодо оприлюдненого Проекту надсилати на адресу: вул. Дмитра Кедріна, 28 м. Дніпро, 49008, або на e-mail: kanc@cek.dp.ua у період з 04.08.2021 до 16.08.2021. Детальна інформація - на сайті: cek.dp.ua
A3: № з/п | B3: Найменування заходів інвестиційної програми | C3: Формування
C4: Прогноз подання на захист в НКРЕКП | H4: Рік виготовлення (актуалізації) проекту | I4: Наявність заходу в Плані розвитку ОСР | J4: Наявність заходу в Схемі перспективного розвитку | K4: Трансформатор
C5: Одиниця виміру | D5: Вартість одиниці продукції, тис. грн. (без ПДВ) | E5: Кількість | F5: Усього | K5: Експертний висновок про непригодність три-ра | M5: Трансформатор новий
F6: тис. грн. (без ПДВ) | G6: тис. грн. (з ПДВ) | K6: Організація | L6: Номер і дата видачі | M6: Ціна НКРЕКП на тр-ри, тис. грн. (з ПДВ) | N6: Прайс виробника (№ дата) | O6: Можливість перемикання на 20 кВ | P6: Тип обладнання | Q6: Термін експлуатації | R6: Група з`єднань обмоток тр-ра МГТ
A7: 1 | B7: =A7+1 -> 2 | C7: 3 | D7: 4 | E7: 5 | F7: 6 | G7: 7 | H7: 8 | I7: 9 | J7: 10 | K7: 11 | L7: 12 | M7: 13 | N7: 14 | O7: 15 | P7: 16 | Q7: 17 | R7: 18
A8: І | B8: Будівництво, модернізація та реконструкція електричних мереж та обладнання
A9: І.1 | B9: Розвиток, модернізація та будівництво електричних мереж у т.ч. | F9: =F13+F22+F28+F63+F10 -> 166698.815 | G9: =F9*1.2 -> 200038.578
A10: І.1.1 | B10: Технічне переоснащення ПС 35 кВ | F10: =F11+F12 -> 36293.06 | G10: =G11+G12 -> 43551.672
A11: І.1.1.1 | B11: Технічне переоснащення трансформаторної підстанції 35/6 кВ Молзавод" (3 черга) | C11: шт. | D11: 10047.75 | E11: 1 | F11: 10047.75 | G11: =F11*1.2 -> 12057.3 | H11: 2018 | I11: так | J11: так | K11: ДП " ВІННИЦЬКИЙ ЕКСПЕРТНО-ТЕХНІЧНИЙ ЦЕНТР ДЕРЖПРАЦІ" | L11: №05.09.04-127.17 від 28.12.17 | P11: ТМН-4000/35/6 | R11: Y/∆-11
A12: І.1.1.2 | B12: Технічне переоснащення трансформаторної підстанції 35/6 кВ "Рахманово" | C12: шт. | D12: 26245.31 | E12: 1 | F12: 26245.31 | G12: 31494.372 | H12: 2018 | I12: так | J12: так
A13: І.2 | B13: Технічне переоснащення ТП з заміною тр-рів | E13: =SUM(E15:E21) -> 7 | F13: =SUM(F15:F21) -> 1750 | G13: =F13*1.2 -> 2100
A14: І.2.1 | B14: Технічне переоснащення ТП - 6/0,4 кВ з заміною тр-ра типу ТМ-630/6/0,4 на тр-р типу ТМГ-630/6/0,4
A15: І.2.1.1 | B15: ТП-124 2Т м. Дніпро, вул. Дмитра Кедріна, 38Д | C15: шт. | D15: 250 | E15: 1 | F15: 250 | G15: =F15*1.2 -> 300 | I15: так | J15: так | P15: ТМГ-630/6/0,4 | R15: Δ/Yн-11
A16: І.2.1.2 | B16: ТП-207 1Т м. Дніпро, вул. Новокримська, 4Д | C16: шт. | D16: 250 | E16: 1 | F16: 250 | G16: =F16*1.2 -> 300 | I16: так | J16: так | P16: ТМГ-630/6/0,4 | R16: Δ/Yн-11
A17: І.2.1.3 | B17: ТП-6 1Т м. Вільногірськ, вул. Центральна, 31б | C17: шт. | D17: 250 | E17: 1 | F17: 250 | G17: =F17*1.2 -> 300 | I17: так | J17: так | P17: ТМГ-630/6/0,4 | R17: Δ/Yн-11
A18: І.2.1.4 | B18: ТП-10 1Т м. Вільногірськ, вул. Гагаріна, 5а | C18: шт. | D18: 250 | E18: 1 | F18: 250 | G18: =F18*1.2 -> 300 | I18: так | J18: так | P18: ТМГ-630/6/0,4 | R18: Δ/Yн-11
A19: І.2.1.5 | B19: ТП-25 2Т м. Павлоград, вул. Сташкова, 13А | C19: шт. | D19: 250 | E19: 1 | F19: 250 | G19: =F19*1.2 -> 300 | I19: так | J19: так | P19: ТМГ-630/6/0,4 | R19: Δ/Yн-11
A20: І.2.1.6 | B20: ТП-14П 1Т м. Павлоград, вул. Достоєвського, 3А | C20: шт. | D20: 250 | E20: 1 | F20: 250 | G20: 300 | I20: так | J20: так | P20: ТМГ-630/6/0,4 | R20: Δ/Yн-11
A21: І.2.1.7 | B21: ТП-13 1Т м. Павлоград, вул. Заводська, 26А | C21: шт. | D21: 250 | E21: 1 | F21: 250 | G21: =F21*1.2 -> 300 | I21: так | J21: так | P21: ТМГ-630/6/0,4 | R21: Δ/Yн-11
A22: І.3 | B22: Будівництво розвантажувального КТП | E22: 3 | F22: =SUM(F23:F26) -> 10383.77 | G22: =F22*1.2 -> 12460.524
A23: І.3.1 | B23: "Будівництво розвантажувального КТП 6 кВ для переведення навантаження ПЛ-0,4 кВ ТП-35 РБ-13, РБ-14 та КЛ-0,4 кВ ТП-25 РБ-4, РБ-11 до буд. №2, 4 по Вул. Г. України, КЛ-0,4 кВ ТП-25 РБ-11 до буд. №6 по вул. Г. України м. Павлоград" | C23: шт | D23: 3000.3 | E23: 1 | F23: 3000.3 | G23: =F23*1.2 -> 3600.36 | H23: 2020 | I23: так | J23: так | P23: ТМГ-1000/6/0,4 | R23: Δ/Yн-11
A24: І.3.2 | B24: "Будівництво розвантажувального КТП-6/0,4 кВ з АВР для переведення навантаження ТП-9к, м. Дніпро" | C24: шт | D24: 1779.28 | E24: 1 | F24: =E24*D24 -> 1779.28 | G24: =F24*1.2 -> 2135.136 | H24: 2020 | I24: так | J24: так | P24: ТМГ-250/6/0,4 | R24: Δ/Yн-11
P25: ТМГ-250/6/0,4 | R25: Δ/Yн-11
A26: І.3.4 | B26: "Будівництво розвантажувального КТП-6/0,4 кВ з заміною проводу АС на СІП існуючих ПЛ-0,4 кВ від КТП-861 РБ-5, РБ-13 по вул. Спортивна, та вул. Вишнева м. Кривий Ріг | C26: шт | D26: 5604.19 | E26: 1 | F26: 5604.19 | G26: =F26*1.2 -> 6725.028 | H26: 2020 | I26: так | J26: так | P26: ТМГ-63/6/0,4 | R26: Δ/Yн-11
P27: ТМГ-160/6/0,4 | R27: Δ/Yн-11
A28: І.4 | B28: Реконструкція ЛЕП | F28: =F29+F32+F36 -> 41104.645 | G28: =F28*1.2 -> 49325.574
A29: І.4.1 | B29: Реконструкція КЛ-0,4 кВ | E29: 2 | F29: =SUM(F30:F31) -> 1646.81 | G29: =F29*1.2 -> 1976.172
A30: І.4.1.1 | B30: Реконструкція кабельної лінії 0,4 кВ ТП-35ш АВ-3 до буд. №11 по вул. Гладкова, м. Дніпро | C30: км | D30: =F30/E30 -> 2750.428571 | E30: 0.07 | F30: 192.53 | G30: =F30*1.2 -> 231.036 | I30: так | J30: так
A31: І.4.1.2 | B31: Реконструкція КЛ-0,4 кВ ТП-116 РБ-5 до щит. №1, КЛ-0,4 кВ ТП-116 РБ-12 до щит. №2, КЛ-0,4 кВ від щитової №1 жо щитової №2 буд. №7 по пров. Ялицевий м. Дніпро | C31: км | D31: =F31/E31 -> 2308.380952 | E31: 0.63 | F31: 1454.28 | G31: =F31*1.2 -> 1745.136 | I31: так | J31: так
A32: І.4.2 | B32: Реконструкція ПЛ-6 кВ | F32: =SUM(F33:F35) -> 30312.22 | G32: =F32*1.2 -> 36374.664
A33: І.4.2.1 | B33: Реконструкція ПЛ-6 кВ Л-5-29 від ком. 14 ПС-35/6 кВ №5 до ком. 10 ПС-35/6 кВ №29 (з відгал.) м. Жовті Води, ЖвРЕМ | C33: км | D33: =F33/E33 -> 1334.244265 | E33: 8.065 | F33: 10760.68 | G33: =F33*1.2 -> 12912.816 | I33: так | J33: так
A34: І.4.2.2 | B34: Будівництво ПЛІ-6 кВ ЗТП-8 ком. №3-ЗТП-168 ком. №6 смт. Дніпровське | C34: км | D34: 3386.5 | E34: 0.74 | F34: 2506.01 | G34: 3007.212 | H34: 2020 | I34: так | J34: так
A35: І.4.2.3 | B35: Реконструкція повітряно-кабельної лінії 6 кВ ПС-5 35/6 кВ ком. 27, ком. 28 – ПС-30 ком. 11, ком. 12, м. Жовті Води | C35: км | D35: 7043.607438 | E35: 2.42 | F35: 17045.53 | G35: 20454.636 | H35: 2019 | I35: так | J35: так
A36: І.4.3 | B36: Реконструкція ПЛ-0,4 кВ з заміною неізольованого проводу на СІП | F36: =SUM(F37:F62) -> 9145.615 | G36: =F36*1.2 -> 10974.738
A37: І.4.3.1 | B37: Реконструкція ПЛ-0,4 кВ ЗТП-160 РБ-3 смт. Дніпровське, ВгРЕМ | C37: км | D37: 376.5454545 | E37: 0.77 | F37: 289.94 | G37: 347.928 | I37: так | J37: так
A38: І.4.3.2 | B38: Реконструкція ПЛ-0,4 кВ ТП-37 РБ-3 , м. Вільногірськ, ВгРЕМ | C38: км | D38: 768.6746988 | E38: 0.498 | F38: 382.8 | G38: 459.36 | I38: так | J38: так
A39: І.4.3.3 | B39: Реконструкція ПЛ-0,4 кВ КТП-3 РБ-3 с.Вільне, Криворізький район, КрРЕМ | C39: км | D39: 782.9818182 | E39: 0.55 | F39: 430.64 | G39: 516.768 | I39: так | J39: так
A40: І.4.3.4 | B40: "Реконструкція ПЛ-0,4 кВ від КТП-3 РБ-2 с.Вільне, Криворізький район, КрРЕМ | C40: км | D40: 1185.6 | E40: 0.3 | F40: 355.68 | G40: 426.816 | I40: так | J40: так
A41: І.4.3.5 | B41: Реконструкція ПЛ-0,4 кВ від КТП-578 РБ-1 с. Хащеве, дільниця Гвардійська, ПвРЕМ | C41: км | D41: 544.5882353 | E41: 0.51 | F41: 277.74 | G41: 333.288 | I41: так | J41: так
A42: І.4.3.6 | B42: Реконструкція ПЛ 0,4 кВ ТП-102 РБ-5, м. Дніпро, ДнРЕМ | C42: км | D42: 1058.01444 | E42: 0.277 | F42: 293.07 | G42: 351.684 | I42: так | J42: так
A43: І.4.3.7 | B43: Реконструкція ПЛ 0,4 кВ ТП-103 РБ-1, м. Дніпро, ДнРЕМ | C43: км | D43: 850 | E43: 0.358 | F43: 304.3 | G43: 365.16 | I43: так | J43: так
A44: І.4.3.8 | B44: Реконструкція ПЛ 0,4 кВ ТП-103 РБ-9, м. Дніпро, ДнРЕМ | C44: км | D44: 691.8595041 | E44: 0.242 | F44: 167.43 | G44: 200.916 | I44: так | J44: так
A45: І.4.3.9 | B45: Реконструкція ПЛ 0,4 кВ ТП -231 РБ - 10, м. Дніпро, ДнРЕМ | C45: км | D45: 650.9871245 | E45: 0.233 | F45: 151.68 | G45: 182.016 | I45: так | J45: так
A46: І.4.3.10 | B46: Реконструкція ПЛ 0,4 кВ ТП - 238 РБ - 5, м. Дніпро, ДнРЕМ | C46: км | D46: 589.7525773 | E46: 0.485 | F46: 286.03 | G46: 343.236 | I46: так | J46: так
A47: І.4.3.11 | B47: Реконструкція ПЛ 0,4 кВ ТП - 238 РБ - 7, м. Дніпро, ДнРЕМ | C47: км | D47: 635.744186 | E47: 0.215 | F47: 136.685 | G47: 164.022 | I47: так | J47: так
A48: І.4.3.12 | B48: Реконструкція ПЛ 0,4 кВ ТП- 116 РБ-2, м. Дніпро, ДнРЕМ | C48: км | D48: =F48/E48 -> 618.6705202 | E48: 0.173 | F48: 107.03 | G48: 128.436 | I48: так | J48: так
A49: І.4.3.13 | B49: Реконструкція ПЛ 0,4 кВ ТП - 238 РБ - 19, м.Дніпро, ДнРЕМ | C49: км | D49: =F49/E49 -> 771.6370107 | E49: 0.281 | F49: 216.83 | G49: 260.196 | I49: так | J49: так
A50: І.4.3.14 | B50: Реконструкція ПЛ-0,4 кВ ТП-111-1 АВ-6, м. Жовті Води | C50: км | D50: =F50/E50 -> 850 | E50: 0.462 | F50: 392.7 | G50: 471.24 | I50: так | J50: так
A51: І.4.3.15 | B51: Реконструкція ПЛ-0,4 кВ ТП-111-1 РБ-5, м. Жовті Води | C51: км | D51: 850 | E51: 0.504 | F51: 428.4 | G51: 514.08 | I51: так | J51: так
A52: І.4.3.16 | B52: Реконструкція ПЛ-0,4 кВ ТП-222 АВ-3, м. Жовті Води | C52: км | D52: =F52/E52 -> 426.5548098 | E52: 0.447 | F52: 190.67 | G52: 228.804 | I52: так | J52: так
A53: І.4.3.17 | B53: Реконструкція ПЛ-0,4 кВ від ЗТП-159 РБ-2 №Л-301б смт. Гвардійське ПвРЕМ | C53: км | D53: =F53/E53 -> 1002.2 | E53: 0.2 | F53: 200.44 | G53: 240.528 | I53: так | J53: так
A54: І.4.3.18 | B54: Реконструкція ПЛ 0,4 кВ ТП -303 РБ -8, м. Дніпро | C54: км | D54: 786.4012739 | E54: 0.314 | F54: 246.93 | G54: 296.316 | I54: так | J54: так
A55: І.4.3.19 | B55: РеконструкціяПЛ 0,4 кВ ТП - 303 РБ -12, м. Дніпро | C55: км | D55: 958.7946429 | E55: 0.224 | F55: 214.77 | G55: 257.724 | I55: так | J55: так
A56: І.4.3.20 | B56: Реконструкція ПЛ 0,4кВ ТП - 303 РБ - 6, м. Дніпро | C56: км | D56: 720 | E56: 0.166 | F56: 119.52 | G56: 143.424 | I56: так | J56: так
A57: І.4.3.21 | B57: Реконструкція ПЛ 0,4 ТП - 324 РБ - 2, м. Дніпро | C57: км | D57: 1195.980392 | E57: 0.102 | F57: 121.99 | G57: 146.388 | I57: так | J57: так
A58: І.4.3.22 | B58: Реконструкція ПЛ 0,4 ТП - 324 РБ - 5, м. Дніпро | C58: км | D58: 720 | E58: 0.899 | F58: 647.28 | G58: 776.736 | I58: так | J58: так
A59: І.4.3.23 | B59: Реконструкція ПЛ 0,4 кВ ТП - 332 РБ - 5, м. Дніпро | C59: км | D59: 797.1487603 | E59: 0.484 | F59: 385.82 | G59: 462.984 | I59: так | J59: так
A60: І.4.3.24 | B60: Реконструкція ПЛ-0,4 кВ ТП-13 АВ-1 з встановленням додаткового комутаційного апарата, м. Жовті Води | C60: км | D60: 749.674221 | E60: 1.412 | F60: 1058.54 | G60: 1270.248 | I60: так | J60: так
A61: І.4.3.25 | B61: Реконструкція ПЛ-0,4 кВ ТП-13 АВ-2 з встановленням додаткового комутаційного апарата, м. Жовті Води | C61: км | D61: 537.149938 | E61: 2.421 | F61: 1300.44 | G61: 1560.528 | I61: так | J61: так
A62: І.4.3.26 | B62: Реконструкція ПЛ-0,4 кВ ТП-19 РБ-7, м. Жовті Води | C62: км | D62: 1009.815668 | E62: 0.434 | F62: 438.26 | G62: 525.912 | I62: так | J62: так
A63: І.5 | B63: Реконструкція ПС 35-150 кВ | F63: =SUM(F64:F66) -> 77167.34 | G63: =F63*1.2 -> 92600.808
A64: І.5.1 | B64: Реконструкції з заміною МВ-150кВ на елегазові вимикачі 150 кВ на ПС 150/10/6кВ "ПЛМ" | C64: шт. | D64: 16187.41 | E64: 1 | F64: 16187.41 | G64: 19424.892 | H64: 2020 | I64: так | J64: так
A65: І.5.2 | B65: Реконструкція схеми живлення м. Жовті Води з підвищенням надійності. Реконструкція підстанції 35/6 "С-35" (1 черга) | C65: шт. | D65: 48582.22 | E65: 1 | F65: =E65*D65 -> 48582.22 | G65: 58298.664
A66: І.5.3 | B66: Реконструкция ПС 35/6 кВ "С-35" 2. 3 етап +АСДТК м. Жовті Води, Дніпропетровської обл. | C66: шт. | D66: 12397.71 | E66: 1 | F66: 12397.71 | G66: =F66*1.2 -> 14877.252 | H66: 2017 | I66: так | J66: так | N66: № 1/114-593 від 02.08.2019 | O66: Присутня | P66: ТМН-4000/35/6 | Q66: 30 років | R66: У/Д-11
A67: І.6 | B67: Проєктні роботи | F67: =SUM(F68:F85) -> 2266.18 | G67: =F67*1.2 -> 2719.416
A68: І.6.1 | B68: Розробка проектної документації "Реконструкція КЛ-6 кВ ГПП-2 ПрАТ "ІнтерМікро Дельта Інк" ком.№208-ТП-8к ком.№5; КЛ-6 кВ ГПП-2 ПрАТ "ІнтерМікро Дельта Інк" ком.№218-ТП-8к ком.№6, ДнРЕМ" | C68: км | D68: =F68/E68 -> 67.43150685 | E68: 1.46 | F68: 98.45 | G68: 118.14 | I68: так | J68: так
A69: І.6.2 | B69: Розробка проектної документації "Реконструкція КЛ 6 ТП-5 ком.№7 - ТП-10 ком.№3 ПвРЕМ" | C69: км | D69: =F69/E69 -> 64 | E69: 1.5 | F69: 96 | G69: 115.2 | I69: так | J69: так
A70: І.6.3 | B70: Розробка проектної документації "Технічне переоснащення (заміна проводу) ПЛ-6 кВ Л-ПС «С-6» – ПП-1; ПЛ-6 кВ Л-ПП-1 – ПП-2 та ПЛ-6 кВ Л-ПС-1 – ПП-1 (з встановленням реклоузерів - 2шт), м. Жовті Води, ЖвРЕМ" | C70: км | D70: 40.09163803 | E70: 8.73 | F70: 350 | G70: 420 | I70: так | J70: так
A71: І.6.4 | B71: Розробка проектної документації "Реконструкція ЦРП-1 РУ-6 кВ з установкою секційного вакуумного вимикача, м. Дніпро ". | C71: шт. | D71: 50 | E71: 1 | F71: 64.41 | G71: 77.292 | I71: так | J71: так
A72: І.6.5 | B72: Розробка проектної документації "Реконструкція ЦРП-3 РУ-6 кВ з установкою секційного вакуумного вимикача". | C72: шт. | D72: 50 | E72: 1 | F72: 64.41 | G72: 77.292 | I72: так | J72: так
A73: І.6.6 | B73: Розробка проектної документації "Будівництво ЩТП для розвантаження ПЛ-0,4 кВ ТП-107 РБ-1, РБ-2, РБ-4, РБ-5 та ТП-26 АВ-1, АВ-2 з реконструкцією ПЛ-0,4 кВ м. Жовті Води, ЖвРЕМ" | C73: шт. | D73: 180 | E73: 1 | F73: 180 | G73: 216 | I73: так | J73: так
A74: І.6.7 | B74: Розробка проектної документації "Технічне переоснащення трансформаторної підстанції ПС "Наклонноствольна 150/6 кВ" з організацією ПРВВ та АСДТК" | C74: шт. | D74: 230 | E74: 1 | F74: 208.78 | G74: 250.536 | I74: так | J74: так
A75: І.6.8 | B75: Розробка проектної документації "Технічне переоснащення трансформаторної підстанції ПС 154/10/6 кВ "ПЛМ" з організацією ПРВВ та АСДТК" | C75: шт. | D75: 260 | E75: 1 | F75: 202.77 | G75: 243.324 | I75: так | J75: так
A76: І.6.9 | B76: Розробка проектної документації "Будівництво розвантажувального ЩТП 6 кВ для переведення навантаження ПЛ-0,4 кВ ТП-7к РБ-7 з реконструкцією ПЛ-0,4 кВ м. Дніпро, ДнРЕМ" | C76: шт. | D76: 190 | E76: 1 | F76: 101.21 | G76: 121.452 | I76: так | J76: так
A77: І.6.10 | B77: Розробка проектної документації "Будівництво розвантажувального ЩТП 6 кВ для переведення навантаження ПЛ-0,4 кВ ПЛ-0,4 кВ КТП-11к РБ-3 з реконструкцією ПЛ-0,4 кВ м. Дніпро, ДнРЕМ" | C77: шт. | D77: 250 | E77: 1 | F77: 108.33 | G77: 129.996 | I77: так | J77: так
A78: І.6.11 | B78: Розробка проектної документації "Будівництво розвантажувального ЩТП 6 кВ для переведення навантаження ПЛ-0,4 кВ КТП-532 РБ-2 з реконструкцією ПЛ-0,4 кВ м. Дніпро, ДнРЕМ" | C78: шт. | D78: 195 | E78: 1 | F78: 195 | G78: 234 | I78: так | J78: так
A79: І.6.12 | B79: Розробка проектної документації "Будівництво КЛ-6 кВ ТП-304 ком.5 - КТП-334 ком.4 м. Дніпро" | C79: км. | D79: =F79/E79 -> 142.6046512 | E79: 0.43 | F79: 61.32 | G79: 73.584 | I79: так | J79: так
A80: І.6.13 | B80: Розробка проектної документації "Реконструкція КЛ-6 кВ ТП-33 ком.6 - ТП-29 ком.1 м. Дніпро, ДнРЕМ" | C80: км. | D80: 120.546875 | E80: 0.64 | F80: 77.15 | G80: 92.58 | I80: так | J80: так
A81: І.6.14 | B81: Розробка проектної документації "Реконструкція КЛ-6 кВ ТП-123 ком.6 - ТП-124 ком.4 м. Дніпро, ДнРЕМ" | C81: км. | D81: 151.122449 | E81: 0.49 | F81: 74.05 | G81: 88.86 | I81: так | J81: так
A82: І.6.15 | B82: Розробка проектної документації "Реконструкція КЛ-6 кВ ЦРП-2 Ф-11 - ТП-209 ком.1 м. Дніпро, ДнРЕМ" | C82: км. | D82: 138.8333333 | E82: 0.54 | F82: 74.97 | G82: 89.964 | I82: так | J82: так
A83: І.6.16 | B83: Розробка проектної документації "Реконструкція КЛ-6 кВ ПС "КПО" Ф-10 - ТП-30 ком.1 м. Дніпро, ДнРЕМ" | C83: км. | D83: 77.225 | E83: 1.2 | F83: 92.67 | G83: 111.204 | I83: так | J83: так
A84: І.6.17 | B84: Розробка проектної документації "Реконструкція КЛ-6 кВ КП-28 ком. № 1 – ТП-140 ком. № 5, КП-28 ком. № 15 – ТП-140 ком. № 6 ДнРЕМ" | C84: км. | D84: 65.2173913 | E84: 2.3 | F84: 150 | G84: 180 | I84: так | J84: так
A85: І.6.18 | B85: Розробка проектної документації "Реконструкція КЛ-6 кВ ТП-40 ком.№4 - ТП-10 ком.№6, м. Павлоград" | C85: км. | D85: 132.2619048 | E85: 0.504 | F85: 66.66 | G85: 79.992
B86: Усього по розділу І | F86: =F67+F9 -> 168964.995 | G86: =G67+G9 -> 202757.994
A87: ІІ.1 | B87: Зниження понаднармотивних втрат електроенергії в т.ч.
A88: ІІ.1.1 | B88: Організація рейдової роботи | F88: =F89+F90 -> 56 | G88: =G89+G90 -> 67.2
A89: ІІ.1.1.1 | B89: Штанги токовимірювальні | C89: шт. | D89: 4 | E89: 4 | F89: =E89*D89 -> 16 | G89: =F89*1.2 -> 19.2 | I89: так | J89: так
A90: ІІ.1.1.2 | B90: Нагрудний відеореєстратор | C90: шт. | D90: 5 | E90: 8 | F90: =E90*D90 -> 40 | G90: =F90*1.2 -> 48 | I90: так | J90: так
A91: ІІ.1.2 | B91: Покращення обліку електроенергії. | F91: =F92 -> 586.872 | G91: =G92 -> 704.2464
A92: ІІ.1.2.1 | B92: Улаштування однофазних (без вартості лічильників) вводів в будинки з застосуванням СІП та встановленням ФШО. | C92: шт. | D92: 1.144 | E92: 513 | F92: =E92*D92 -> 586.872 | G92: =F92*1.2 -> 704.2464 | I92: так | J92: так
A93: ІІ.3 | B93: Створення АСКОЕ побутових споживачів | F93: =F94+F95+F96+F97+F98 -> 9440.06 | G93: =G94+G95+G96+G97+G98 -> 11328.072
A94: ІІ.3.1 | B94: Лічильник однофазний с функцією PLC (Смарт) | C94: шт. | D94: 1.52 | E94: 5350 | F94: =D94*E94 -> 8132 | G94: =F94*1.2 -> 9758.4 | I94: так | J94: так
A95: ІІ.3.2 | B95: Лічильник трифазний с функцією PLC (Смарт) | C95: шт. | D95: 3.27 | E95: 146 | F95: =D95*E95 -> 477.42 | G95: 572.904 | I95: так | J95: так
A96: ІІ.3.3 | B96: Шафа АСКОЕ "Побут-PLC" в комплекті з контролерами | C96: шт. | D96: 22.88 | E96: 28 | F96: 640.64 | G96: 768.768 | I96: так | J96: так
A97: ІІ.3.4 | B97: Колодка випробувальна | C97: шт. | D97: 0.8 | E97: 50 | F97: 40 | G97: 48 | I97: так | J97: так
A98: ІІ.3.5 | B98: Лічильник трифазний двонаправлений з інтерфейсом RS485 | C98: шт. | D98: 5 | E98: 30 | F98: 150 | G98: 180 | I98: так | J98: так
A99: ІІ.4 | B99: Закупівля обладнання під АСКОЕ | F99: =F100+F101+F102+F103 -> 2191.4 | G99: =G100+G101+G102+G103 -> 2629.68
A100: ІІ.4.1 | B100: Лічильник багатотарифний типу SL 7000 | C100: шт. | D100: 12.94 | E100: 110 | F100: =D100*E100 -> 1423.4 | G100: =F100*1.2 -> 1708.08 | I100: так | J100: так
A101: ІІ.4.2 | B101: Шафа АСКОЕ периметру | C101: шт. | D101: 14 | E101: 20 | F101: =D101*E101 -> 280 | G101: 336 | I101: так | J101: так
A102: ІІ.4.3 | B102: Трансформатори струму 6(10) кВ | C102: шт. | D102: 8 | E102: 46 | F102: =D102*E102 -> 368 | G102: 441.6 | I102: так | J102: так
A103: ІІ.4.4 | B103: Трансформатори напруги 6-10 кВ | C103: шт. | D103: 12 | E103: 10 | F103: 120 | G103: 144 | I103: так | J103: так
A104: ІІ.5 | B104: Модернізація лабораторії для перевірки комерційного обліку | F104: =F105+F106+F107+F108+F109 -> 6875 | G104: =G105+G106+G107+G108+G109 -> 8250
A105: ІІ.5.1 | B105: Лабораторія з повірки трансформаторів струму та напруги | C105: шт. | D105: 4200 | E105: 1 | F105: =D105*E105 -> 4200 | G105: =F105*1.2 -> 5040 | I105: так | J105: так
A106: ІІ.5.2 | B106: Стенд для повірки трифазних лічильників електроенергії | C106: шт. | D106: 2000 | E106: 1 | F106: =D106*E106 -> 2000 | G106: 2400 | I106: так | J106: так
A107: ІІ.5.3 | B107: Портативний аналізатор спектру FPH, або аналог | C107: шт. | D107: 330 | E107: 1 | F107: =D107*E107 -> 330 | G107: 396 | I107: так | J107: так
A108: ІІ.5.4 | B108: Ручна направлена антена HE400, або аналог. | C108: шт. | D108: 320 | E108: 1 | F108: 320 | G108: 384 | I108: так | J108: так
A109: ІІ.5.5 | B109: Скануючий приймач AOR AR8200 Mk3, або аналог. | C109: шт. | D109: 25 | E109: 1 | F109: 25 | G109: 30 | I109: так | J109: так
A110: Усього по розділу II: | F110: =F104+F99+F93+F91+F88 -> 19149.332 | G110: =G104+G99+G93+G91+G88 -> 22979.1984
A111: III. Впровадження та розвиток АСДТК
A112: III.1 | B112: Впровадження комплексy АСДTK (ЦРП-4) | C112: шт. | D112: 1100 | E112: 1 | F112: 1228.99 | G112: =F112*1.2 -> 1474.788 | I112: так | J112: так
A113: III.2 | B113: Впровадження комплексy АСДTK (ЦРП-5) | C113: шт. | D113: 1300 | E113: 1 | F113: 1436.58 | G113: 1723.896 | I113: так | J113: так
A114: III.3 | B114: Розробка і впровадження системи управління аварійними і плановими відключеннями (OMS) завершення. | C114: шт. | D114: 1996 | E114: 0.5 | F114: =D114*E114 -> 998 | G114: 1197.6 | I114: так | J114: так
A115: III.4 | B115: Проектування РП ( 11 шт., 7 на 2023 р. 4 на 2024 р.) | C115: шт. | D115: =F115/E115 -> 63.63636364 | E115: 11 | F115: 700 | G115: 840 | I115: так | J115: так
A116: III.5 | B116: Облаштування ПС/РП датчиками відключень для OMS | C116: шт. | D116: =2000-62 -> 1938 | E116: 1 | F116: 1672.43 | G116: 2006.916 | I116: так | J116: так
A117: Усього по розділу III: | F117: =F113+F112+F114+F115+F116 -> 6036 | G117: =G113+G112+G114+G115+G116 -> 7243.2
A118: IV. Впровадження та розвиток інформаційних технологій
A119: ІV.1 | B119: Модернізація існуючих та закупівля нових засобів комп'ютеризації, у т.ч.: | F119: =F120+F125+F127 -> 1448.41 | G119: =G120+G125+G127 -> 1738.092
A120: IV.1.1 | B120: Закупівля нових робочих станцій: | F120: =F121+F124+F122+F123 -> 826.41 | G120: =G121+G124+G122+G123 -> 991.692
A121: IV.1.1.1 | B121: Моноблок | C121: шт. | D121: 30 | E121: 16 | F121: =E121*D121 -> 480 | G121: =F121*1.2 -> 576 | I121: так | J121: так
A122: IV.1.1.2 | B122: Монитор | C122: шт. | D122: 10 | E122: 10 | F122: =E122*D122 -> 100 | G122: 120 | I122: так | J122: так
A123: IV.1.1.3 | B123: Блок ПК | C123: шт. | D123: 30 | E123: 6 | F123: =E123*D123 -> 180 | G123: 216 | I123: так | J123: так
A124: IV.1.1.4 | B124: Ноутбук | C124: шт. | D124: 33.205 | E124: 2 | F124: =E124*D124 -> 66.41 | G124: 79.692 | I124: так | J124: так
A125: IV.1.2 | B125: Інші засоби комп'ютеризації | F125: =F126 -> 75 | G125: =G126 -> 90
A126: IV.1.2.1 | B126: МФУ А4 Лазерний | C126: шт | D126: 15 | E126: 5 | F126: =D126*E126 -> 75 | G126: 90 | I126: так | J126: так
A127: IV.1.3 | B127: Мережеве обладнання | F127: =F128+F129 -> 547 | G127: =G128+G129 -> 656.4
A128: IV.1.3.1 | B128: Сервер | C128: шт | D128: 250 | E128: 2 | F128: =E128*D128 -> 500 | G128: 600 | I128: так | J128: так
A129: IV.1.3.2 | B129: Комутатор | C129: шт | D129: 23.5 | E129: 2 | F129: =D129*E129 -> 47 | G129: 56.4 | I129: так | J129: так
A130: ІV.2 | B130: Модернізація прикладного програмного забезпечення, у т.ч.: | F130: =F131+F132+F133+F134+F135 -> 5999.9988 | G130: =G131+G132+G133+G134+G135 -> 7199.99856
A131: IV.2.1 | B131: ПЗ віртуалізації VMware | C131: шт | D131: 200 | E131: 1 | F131: =D131*E131 -> 200 | G131: 240 | I131: так | J131: так
A132: IV.2.2 | B132: Впровадження програми SAP-ISU пром споживачі | C132: шт | D132: 3000 | E132: 0.5 | F132: =D132*E132 -> 1500 | G132: 1800 | I132: так | J132: так
A133: IV.2.3 | B133: Розробка та впровадження системи автоматичного відстеження та розрахунку індексів SAIDI, SAIFI, MAIFI, ENS 17 2 єтапи | C133: шт | D133: 2900 | E133: 0.655172 | F133: =D133*E133 -> 1899.9988 | G133: 2279.99856 | I133: так | J133: так
A134: IV.2.4 | B134: Впровадження персонального кабінету споживача ПрАТ ПЕЕМ ЦЕК | C134: шт | D134: 300 | E134: 1 | F134: =D134*E134 -> 300 | G134: 360 | I134: так | J134: так
A135: IV.2.5 | B135: Закупівля ліцензій SAP/ERP (15 ліцензій) | C135: шт | D135: 140 | E135: 15 | F135: =D135*E135 -> 2100 | G135: 2520 | I135: так | J135: так
A136: Усього по розділу IV: | F136: =F119+F130 -> 7448.4088 | G136: =G119+G130 -> 8938.09056
A137: V. Впровадження та розвиток систем зв'язку
A138: V.1 | B138: Впровадження та розвиток систем зв'язку
A139: V.1.1 | B139: IP телефон | C139: шт | D139: 3.4 | E139: =29-1 -> 28 | F139: =E139*D139 -> 95.2 | G139: =F139*1.2 -> 114.24 | I139: так | J139: так
A140: V.1.2 | B140: Маршрутизатор | C140: шт | D140: 7 | E140: 10 | F140: =E140*D140 -> 70 | G140: 84 | I140: так | J140: так
A141: Усього по розділу V: | F141: =F139+F140 -> 165.2 | G141: =G139+G140 -> 198.24
A142: VI. Модернізація та закупівля колісної техніки
A143: VI.1 | B143: Автобус ЗАЗ А08 А08А1В | C143: шт | D143: 1601.7 | E143: 1 | F143: =D143*E143 -> 1601.7 | G143: =F143*1.2 -> 1922.04 | I143: так | J143: так
A144: VI.2 | B144: Renault Dokker | C144: шт | D144: 440 | E144: 10 | F144: =D144*E144 -> 4400 | G144: 5280 | I144: так | J144: так
A145: VI.3 | B145: Ford Transit Custom Kombi 2.0D MT F320 L1H1 105 Trend | C145: шт | D145: 718 | E145: 2 | F145: =D145*E145 -> 1436 | G145: 1723.2 | I145: так | J145: так
A146: VI.4 | B146: Ford Ranger | C146: шт | D146: 970.6 | E146: 1 | F146: 970.6 | G146: 1164.72 | I146: так | J146: так
A147: VI.5 | B147: Лабораторія ESTL-35 Plus на базі Ford Transit L3H3 | C147: шт | D147: 1634.42 | E147: 1 | F147: 1634.42 | G147: 1961.304 | I147: так | J147: так
A148: Усього по розділу VI: | F148: =F144+F143+F145+F146+F147 -> 10042.72 | G148: =G144+G143+G145+G146+G147 -> 12051.264
A149: VII. Інше
A150: VII.1 | B150: Обладнання, що не вимагає монтажу
A151: VII.1.1 | B151: Пробовідбірник трансформаторного масла «ELCHROM» об’ємом 20 мл | C151: шт | D151: 10 | E151: 1 | F151: =E151*D151 -> 10 | G151: =F151*1.2 -> 12 | I151: так | J151: так
A152: VII.1.2 | B152: Установка для випробування оболонки та локалізації пошкодження оболонки в кабелі зі сшитого поліетилену Shirla BAUR + Пошуковий приймач Protrac | C152: шт | D152: 600 | E152: 1 | F152: =E152*D152 -> 600 | G152: 720 | I152: так | J152: так
A153: VII.1.3 | B153: Реєстратор якості електричної енергії Metrel MI 2892 EU Q4 | C153: шт | D153: 108 | E153: 2 | F153: =E153*D153 -> 216 | G153: =F153*1.2 -> 259.2 | I153: так | J153: так
A154: VII.1.4 | B154: Бензиновий електрогенератор AGT 12501 HSBE R16 | C154: шт | D154: 123.85 | E154: 1 | F154: =E154*D154 -> 123.85 | G154: 148.62
A155: VII.1.5 | B155: Лабораторний автотрансформатор трифазного (виробник: RUSELF, модель LTC-3-3000) | C155: шт | D155: 8.56 | E155: 1 | F155: =E155*D155 -> 8.56 | G155: 10.272 | I155: так | J155: так
A156: Усього по розділу VII: | E156: розділу,00 | F156: =F155+F152+F151+F153+F154 -> 958.41 | G156: =G155+G152+G151+G154+G153 -> 1150.092
A157: Усього по програмі: | E157: по,00 | F157: =F156+F148+F141+F136+F117+F110+F86 -> 212765.0658 | G157: =G156+G148+G141+G136+G117+G110+G86 -> 255318.079
A159: * Довжина ліній електропередачі вказується по трасі ліній. (перевірено)
B161: Керівник ліцензіата ___________________ | J161: М.В. Корса
B162: (або особа, яка виконує його обов'язки) (підпис) | J162: (прізвище, ім'я, по батькові)
B164: "____" ____________ 2020___ року | F164: М. П.
